Cogmind - Beta 16 --- EXPLORER MODE // 2025.11.28 @ 16:49:22 Player: Beosis Result: Destroyed by Y-54 Guardian with Flak Gun Performance ------------- Evolutions (3) 1500 Regions Visited (6) 1200 Robots Destroyed (31) 155 Value Destroyed (672) 672 Prototype IDs (3) 60 Alien Tech Used (0) 0 Bonus (247) 247 TOTAL SCORE: 3834 Bonus ------- Follower Combat Kills 47 Entered Garrisons 200 Cogmind --------- Core Integrity 0/700 Matter 275/300 Energy 100/100 System Corruption 0% Temperature Cool (21) Movement Core (50) Location -7/Garrison Parts ------- > --- POWER (2) -------- (None) > --- PROPULSION (5) --- (None) > --- UTILITY (5) ------ (None) > --- WEAPON (2) ------- Improved Datajack > --- INVENTORY (5) ---- (None) Peak State ------------ > --- POWER ------------ Micro Nuclear Core Micro Nuclear Core > --- PROPULSION ------- Cesium-ion Thruster Cesium-ion Thruster Improved VTOL Module Improved VTOL Module Xenon Bombardment Thruster > --- UTILITY ---------- Cooling System Coolant Injector Advanced Weight Redist. System Structural Scanner Core Shielding > --- WEAPON ----------- Greatsword > --- INVENTORY -------- Deuterium Engine High-powered Shotgun Rocket Launcher Improved Datajack [Rating: 46] Favorites ----------- Power Light Ion Engine Engine Light Ion Engine Power Core Micro Nuclear Core Propulsion Flight Unit Hover Unit Hover Unit Flight Unit Flight Unit Utility Targeting Computer Device Cooling System Processor Targeting Computer Protection Core Shielding Weapon Light Assault Rifle Energy Gun Small Laser Ballistic Gun Light Assault Rifle Ballistic Cannon Improved Light Cannon Launcher Rocket Launcher Slashing Weapon Greatsword Special Melee Weapon Improved Datajack Build | -11 -10 -10 -9 -8 -7 -7 ------- Run | Yrd Mat Min Mat Mat Fac Gar Slots Evolved 7 | . 1 . 2 2 2 . Power 1 | . . . . 1 . . Propulsion 3 | . 1 . 2 . . . Utility 3 | . . . . 1 2 . Weapon . | . . . . . . . Parts Attached 43 | 4 5 2 3 17 9 3 Power 10 | 1 1 . . 4 3 1 Engine 8 | 1 1 . . 4 1 1 Core 2 | . . . . . 2 . Reactor . | . . . . . . . Propulsion 15 | . 3 2 1 7 2 . Treads . | . . . . . . . Leg . | . . . . . . . Wheel . | . . . . . . . Hover 1 | . 1 . . . . . Flight 14 | . 2 2 1 7 2 . Utility 8 | 2 . . 1 2 3 . Device 5 | . . . . 2 3 . Storage . | . . . . . . . Processor 2 | 2 . . . . . . Hackware . | . . . . . . . Protection 1 | . . . 1 . . . Artifact . | . . . . . . . Weapon 10 | 1 1 . 1 4 1 2 Energy Gun 2 | . . . . 2 . . Energy Cannon . | . . . . . . . Ballistic Gun 3 | 1 . . 1 . . 1 Ballistic Cannon 2 | . . . . 2 . . Launcher 1 | . 1 . . . . . Special Weapon . | . . . . . . . Impact Weapon . | . . . . . . . Slashing Weapon 1 | . . . . . 1 . Piercing Weapon . | . . . . . . . Special Melee Weapon 1 | . . . . . . 1 Unidentified Prototypes 1 | . . . . 1 . . Parts Lost 16 | . . . 1 1 . 14 Power 4 | . . . . 1 . 3 Propulsion 5 | . . . 1 . . 4 Utility 4 | . . . . . . 4 Weapon 3 | . . . . . . 3 Highest Loss Streak 13 | . . . 1 1 . 13 To Critical Strikes . | . . . . . . . Average Backups 4 | . 4 5 4 4 4 3 Power . | . . 1 . . 1 1 Propulsion . | . . . . . 1 . Utility 1 | . 2 3 3 1 . . Weapon . | . . . . 1 1 1 Tool/Special . | . . . . . . . Unused Backups 4 | . 1 . . 2 1 . Power . | . . . . . . . Propulsion 2 | . 1 . . 1 . . Utility 1 | . . . . 1 . . Weapon . | . . . . . . . Tool/Special 1 | . . . . . 1 . Average Slot Usage (%) 85 | . 80 97 88 97 90 69 Engine 10 | . 12 12 10 15 9 . Core 2 | . . . . . 4 11 Flight 30 | . 23 34 38 40 35 24 Device 6 | . . . . 7 21 19 Processor 15 | . 25 25 20 8 5 . Protection 3 | . . . . 8 6 6 Energy Gun 1 | . . . . 6 . . Ballistic Gun 8 | . 12 12 11 8 . . Launcher 4 | . 7 12 8 . . . Slashing Weapon 1 | . . . . . 6 5 Peak Build Rating 46 | 4 8 9 11 29 45 46 Average Rating 17 | 3 7 8 9 24 39 34 On Entrance 14 | . 4 8 9 9 29 45 Avg Prop Armor Cover (%) 2 | . . . . 2 . . Naked Turns . | . . . . . . . Heaviest Build 22 | 4 8 8 8 21 22 22 Greatest Support 35 | 3 8 12 16 23 32 35 Greatest Overweight (x) 2 | 1 1 . . . . 2 Average Overweight (x) . | . . . . . . . Largest Inventory Capacity 5 | 5 5 5 5 5 5 5 Average Capacity 5 | 5 5 5 5 5 5 5 Most Carried 5 | 2 5 5 5 5 5 5 Average Carried 4 | . 4 4 4 4 4 3 Final Capacity 5 | 5 5 5 5 5 5 5 Final Carried 5 | 1 5 5 4 5 5 . Class Distribution -------------------- 54% | Hacker-Mutant 45% | Hacker-Sprinter Dominant Class ---------------- Hacker-Mutant | -10/Materials Hacker-Mutant | -10/Mines Hacker-Sprinter | -9/Materials Hacker-Sprinter | -8/Materials Hacker-Sprinter | -7/Factory Hacker-Sprinter | -7/Garrison Resources | -11 -10 -10 -9 -8 -7 -7 ----------- Run | Yrd Mat Min Mat Mat Fac Gar Matter Collected 851 | 235 137 27 63 150 160 79 Remotely . | . . . . . . . Salvage Created 1264 | . 500 92 89 181 201 201 Parts 60 | . 24 2 7 10 9 8 Haulers Intercepted 5 | . 2 . . 1 2 . Recyclers Shooed 2 | . . . 2 . . . Parts Field Recycled . | . . . . . . . Retrieved Matter . | . . . . . . . Parts Self-Destructed . | . . . . . . . Prevented . | . . . . . . . Parts Restored . | . . . . . . . Kills | -11 -10 -10 -9 -8 -7 -7 ------- Run | Yrd Mat Min Mat Mat Fac Gar Combat Hostiles Destroyed 19 | . 8 . 3 4 . 4 Melee 2 | . . . . . . 2 Guns 14 | . 5 . 3 4 . 2 AOE 2 | . 2 . . . . . Classes Destroyed 7 | . 5 . 1 . . 1 Hauler 5 | . 2 . . 1 2 . Recycler 3 | . 1 1 . . 1 . Watcher 4 | . 2 . . 1 1 . Swarmer 7 | . 2 . 2 3 . . Cutter 1 | . . . . . . 1 Grunt 7 | . 6 . . . . 1 Sentry 4 | . . . 1 1 . 2 Best Kill Streak 5 | . 5 1 2 5 2 3 Combat Bots Only 4 | . 2 . 2 4 . 3 Max Kills in Single Turn 1 | . 1 1 1 1 1 1 Gunslinging . | . . . . . . . Exploded 1 | . 1 . . . . . Melee 1 | . . . . . . 1 Uniques/NPCs Destroyed . | . . . . . . . Combat | -11 -10 -10 -9 -8 -7 -7 -------- Run | Yrd Mat Min Mat Mat Fac Gar Hostile Shots Fired 490 | . 29 4 34 51 . 372 Missed 201 | . 9 2 7 28 . 155 Hits 289 | . 20 2 27 23 . 217 Melee 25 | . . . . 4 . 21 Projectile 264 | . 20 2 27 19 . 196 AOE 1 | . . . . . . 1 Critical Strikes 11 | . . . 2 1 . 8 Actively Blocked 1 | . . . . 1 . . Damage Taken 2193 | . 150 13 215 231 . 1584 Core 843 | . 54 . 43 45 . 701 Absorbed by Shields 51 | . . . . . . 51 Redirected to Shielding 48 | . . . . 9 . 39 Ignored by Resistances 1420 | . 96 8 134 140 . 1042 Regen/Repaired (Parts) 18 | . 18 . . . . . Core Remaining (%) 89 | 100 . 78 89 91 . . Volleys Fired 123 | . 50 7 28 31 . 7 Largest 2 | . 2 1 1 2 . 1 Hottest 60 | . 53 20 20 60 . 25 Shots Fired 156 | . 52 7 28 62 . 7 Gun 154 | . 50 7 28 62 . 7 Cannon . | . . . . . . . Launcher 2 | . 2 . . . . . Special . | . . . . . . . Kinetic 123 | . 50 7 28 31 . 7 Thermal 31 | . . . . 31 . . Explosive 2 | . 2 . . . . . Electromagnetic . | . . . . . . . Robot Hit Streak 27 | . 17 8 21 27 . 18 Robot Miss Streak 2 | . 2 1 1 2 . . Penetration Max . | . . . . . . . Secondary Targets 1 | . . . . 1 . . Max Gunslinging Chain 1 | . . . . 1 . . Shots Hit Robots 152 | . 45 6 27 52 7 15 Core Hits 70 | . 28 2 8 18 4 10 Critical Kills . | . . . . . . . Critical Parts Destroyed 1 | . 1 . . . . . Critical Strikes 5 | . 1 . . . 2 2 Destroy 1 | . 1 . . . . . Sever 4 | . . . . . 2 2 Melee Attacks 17 | . . . . . 7 10 Impact . | . . . . . . . Slashing 13 | . . . . . 7 6 Piercing . | . . . . . . . Sneak Attacks 3 | . . . . . 3 . Combat Hostiles . | . . . . . . . Follow-up Attacks . | . . . . . . . Damage Inflicted 2231 | . 469 51 216 501 581 413 Guns 1261 | . 353 51 216 501 . 140 Cannons . | . . . . . . . Explosions 116 | . 116 . . . . . Melee 846 | . . . . . 581 265 Ramming 8 | . . . . . . 8 Kinetic 951 | . 353 51 216 191 . 140 Thermal 310 | . . . . 310 . . Explosive 116 | . 116 . . . . . Electromagnetic . | . . . . . . . Impact . | . . . . . . . Slashing 846 | . . . . . 581 265 Piercing . | . . . . . . . Highest Corruption . | . . . . . . . Average Corruption . | . . . . . . . Corruption Purged . | . . . . . . . Corruption Blocked . | . . . . . . . Overload Shots . | . . . . . . . Overflow Damage 39 | . . . . . 21 18 Projectiles . | . . . . . . . Explosions . | . . . . . . . Melee 39 | . . . . . 21 18 Knockbacks . | . . . . . . . Impact . | . . . . . . . Kinetic . | . . . . . . . Secondary . | . . . . . . . Self-Inflicted Damage 13 | . 10 . . . . 3 Shots 1 | . 1 . . . . . Rammed 5 | . . . . . . 5 Targets Rammed 5 | . . . . . . 5 Kicked . | . . . . . . . Crushed . | . . . . . . . Highest Temperature 179 | . 30 9 11 96 5 179 Average Temperature 41 | . 5 6 5 46 5 78 Received Heat Transfer 1051 | . 111 12 126 45 . 757 Siege Activations . | . . . . . . . Martial Activations . | . . . . . . . Shielding Activations . | . . . . . . . Robots Disrupted . | . . . . . . . Combat Hostiles . | . . . . . . . Robots Corrupted . | . . . . . . . Combat Hostiles . | . . . . . . . Parts Fried 3 | . 3 . . . . . Impact Corruptions . | . . . . . . . Robots Melted . | . . . . . . . Combat Hostiles . | . . . . . . . Parts Melted 1 | . . . . 1 . . Heat Transferred 700 | . . . . 700 . . Parts Sabotaged . | . . . . . . . Parts Stolen . | . . . . . . . Parts Stripped . | . . . . . . . Power Chain Reactions . | . . . . . . . Alert | -11 -10 -10 -9 -8 -7 -7 ------- Run | Yrd Mat Min Mat Mat Fac Gar Maximum Alert Level . | . . . . . . . Low Security (%) 100 | 100 100 100 100 100 100 100 Level 1 . | . . . . . . . Level 2 . | . . . . . . . Level 3 . | . . . . . . . Level 4 . | . . . . . . . Level 5 . | . . . . . . . High Security . | . . . . . . . Max Security . | . . . . . . . Peak Influence 152 | . 111 5 65 105 20 152 Initial 20 | . . . 1 7 20 . Average 31 | . 27 . 23 43 4 74 Influence Increases 963 | . 293 5 113 252 38 262 Destroy 0b10 Robot/C 420 | . 160 . 60 80 . 120 Destroy 0b10 Robot/NC 60 | . 25 5 . 10 20 . Destroy Leader 98 | . 38 . 20 24 6 10 Trap Triggered on 0b10 20 | . 20 . . . . . Successful Hack 33 | . 3 . 3 3 12 12 Destroy Structure 17 | . 17 . . . . . Partial Spotted 90 | . 15 . 30 45 . . Lose Combat Pursuer 225 | . 15 . . 90 . 120 Influence Decreases 861 | . 293 . 93 214 101 160 Entered New Map 65 | . . . 4 18 43 . Time Decay 616 | . 293 . 79 186 58 . Lost Part 160 | . . . 10 10 . 140 Lost Ally 20 | . . . . . . 20 Squads Dispatched 4 | . 1 . . 2 1 . Investigation 4 | . 1 . . 2 1 . Extermination . | . . . . . . . Reinforcement . | . . . . . . . Assault . | . . . . . . . Garrison . | . . . . . . . Intercept . | . . . . . . . Searches Triggered . | . . . . . . . Construction Impeded . | . . . . . . . Haulers Reinforced . | . . . . . . . Active Scanning Responses . | . . . . . . . Cargo Convoy Interrupts . | . . . . . . . Stealth | -11 -10 -10 -9 -8 -7 -7 --------- Run | Yrd Mat Min Mat Mat Fac Gar Distress Signals 2 | . . . 1 1 . . Communications Jammed . | . . . . . . . Distress Signals . | . . . . . . . Times Spotted 64 | . 12 2 5 20 1 24 Peak Tracking Total 13 | . 3 2 4 6 1 13 Tactical Retreats 7 | . 1 . . 4 . 2 Traps | -11 -10 -10 -9 -8 -7 -7 ------- Run | Yrd Mat Min Mat Mat Fac Gar Traps Triggered 4 | . . . . . . 4 Indirectly . | . . . . . . . Trap Hack Attempts . | . . . . . . . Triggered . | . . . . . . . Disarmed . | . . . . . . . Reprogrammed 4 | . 4 . . . . . Reused 2 | . 2 . . . . . Traps Extracted . | . . . . . . . Installed . | . . . . . . . Triggered 2 | . 2 . . . . . Machines | -11 -10 -10 -9 -8 -7 -7 ---------- Run | Yrd Mat Min Mat Mat Fac Gar Machines Disabled . | . . . . . . . Max in Single Turn . | . . . . . . . Machines Repaired . | . . . . . . . Machines Dismantled . | . . . . . . . Machines Sabotaged . | . . . . . . . Overloaded Fab Kills . | . . . . . . . Hacking | -11 -10 -10 -9 -8 -7 -7 --------- Run | Yrd Mat Min Mat Mat Fac Gar Machines Accessed 17 | . 6 . 2 4 3 2 Terminals 12 | . 3 . 2 4 1 2 Fabricators 1 | . . . . . 1 . Repair Stations 1 | . 1 . . . . . Recycling Units 2 | . 2 . . . . . Scanalyzers . | . . . . . . . Garrison Access 1 | . . . . . 1 . Total Hacks 38 | . 13 . 4 12 6 3 Successful 27 | . 10 . 3 8 4 2 Failed 11 | . 3 . 1 4 2 1 Catastrophic 2 | . . . 1 1 . . Database Lockouts . | . . . . . . . Manual . | . . . . . . . Terminals 27 | . 5 . 4 12 3 3 Fabricators 2 | . . . . . 2 . Repair Stations 3 | . 3 . . . . . Recycling Units 5 | . 5 . . . . . Scanalyzers . | . . . . . . . Garrison Access 1 | . . . . . 1 . Terminal Hacks 19 | . 5 . 3 8 1 2 Prototype ID Bank 1 | . 1 . . . . . Level Access Points 1 | . . . . . 1 . Branch Access Points 1 | . 1 . . . . . Emergency Access Points 3 | . . . . 2 . 1 Machine Index 1 | . . . 1 . . . Alert Level 2 | . . . . 2 . . Locate Traps 2 | . 1 . . 1 . . Reprogram Traps 1 | . 1 . . . . . Hauler Manifests 1 | . . . . 1 . . Zone Layout 5 | . 1 . 2 2 . . Security Stations 1 | . . . . . . 1 Fabricator Hacks 2 | . . . . . 2 . Network Status 1 | . . . . . 1 . Build 1 | . . . . . 1 . Repair Station Hacks 2 | . 2 . . . . . Scan Component 1 | . 1 . . . . . Repair 1 | . 1 . . . . . Recycling Unit Hacks 3 | . 3 . . . . . Report Inventory 2 | . 2 . . . . . Retrieve Components 1 | . 1 . . . . . Scanalyzer . | . . . . . . . Garrison Access Hacks 1 | . . . . . 1 . Unlock Access 1 | . . . . . 1 . Unauthorized Hacks . | . . . . . . . Terminals . | . . . . . . . Fabricators . | . . . . . . . Repair Stations . | . . . . . . . Recycling Units . | . . . . . . . Scanalyzers . | . . . . . . . Garrison Access . | . . . . . . . Data Cores Recovered . | . . . . . . . Used . | . . . . . . . Hacking Detections 10 | . 4 . . 4 2 . Full Trace Events 5 | . 2 . . 2 1 . Feedback Events . | . . . . . . . Feedback Blocked . | . . . . . . . Robot Schematics Acquired . | . . . . . . . Robots Built 2 | . . . . . 2 . Authchips . | . . . . . . . Time 58 | . . . . . 58 . Total Robot Build Rating 6 | . . . . . 6 . Part Schematics Acquired . | . . . . . . . Parts Built . | . . . . . . . Authchips . | . . . . . . . Time . | . . . . . . . Total Part Build Rating . | . . . . . . . Part Studies Acquired . | . . . . . . . Parts Repaired 1 | . 1 . . . . . Time 26 | . 26 . . . . . Parts Recycled . | . . . . . . . Recycled Matter . | . . . . . . . Retrieved Matter . | . . . . . . . Retrieved Components 2 | . 2 . . . . . Parts Scanalyzed . | . . . . . . . Part Schematics Acquired . | . . . . . . . Parts Damaged . | . . . . . . . Bothacking | -11 -10 -10 -9 -8 -7 -7 ------------ Run | Yrd Mat Min Mat Mat Fac Gar Used RIF Installer . | . . . . . . . Robots Hacked . | . . . . . . . Non-combat . | . . . . . . . Combat . | . . . . . . . Robot Hacks Applied . | . . . . . . . Relay Couplers Released . | . . . . . . . Fabnet Peak Effective % . | . . . . . . . Robots Rewired . | . . . . . . . Allies Hacked . | . . . . . . . Hacks Repelled . | . . . . . . . Allies | -11 -10 -10 -9 -8 -7 -7 -------- Run | Yrd Mat Min Mat Mat Fac Gar Total Allies 2 | . . . . . 2 . Largest Group 2 | . . . . . 2 2 Highest-Rated Group 42 | . . . . . 42 42 Highest-Rated Ally 21 | . . . . . 21 21 Total Orders . | . . . . . . . Ally Attacks 10 | . . . . . . 10 Total Damage 266 | . . . . . . 266 Kills 2 | . . . . . . 2 Allies Corrupted . | . . . . . . . Allies Melted . | . . . . . . . Intel | -11 -10 -10 -9 -8 -7 -7 ------- Run | Yrd Mat Min Mat Mat Fac Gar Active Infowar (turns) 389 | . . . . . 214 175 Structural 389 | . . . . . 214 175 Robot Analysis Total . | . . . . . . . Derelict Logs Recovered . | . . . . . . . Drone Launches . | . . . . . . . Drone Recoveries . | . . . . . . . Exploration | -11 -10 -10 -9 -8 -7 -7 ------------- Run | Yrd Mat Min Mat Mat Fac Gar Turns Passed 1788 | 59 709 93 153 313 214 247 Spaces Moved 2365 | 61 575 104 209 676 287 453 Core 85 | 61 24 . . . . . Treads . | . . . . . . . Legs . | . . . . . . . Wheels . | . . . . . . . Hover . | . . . . . . . Flight 2280 | . 551 104 209 676 287 453 Fastest Speed 23 | 50 37 34 31 24 23 23 Average Speed 31 | 83 39 34 31 25 23 30 Slowest Speed 175 | 100 100 37 34 31 25 175 Overloaded Moves . | . . . . . . . Propulsion Burnouts . | . . . . . . . Robots Hopped 9 | . 4 2 2 1 . . Potential Cave-ins . | . . . . . . . Cave-ins Triggered . | . . . . . . . Exploration Rate (%) 36 | 4 75 45 27 48 8 45 Regions Visited 6 Branch Regions 1 Pre-discovered Areas . | . . . . . . . Known Exits Taken 6 | 1 1 1 1 1 1 . Unknown Exits Taken . | . . . . . . . Scrap Searched . | . . . . . . . Spaces Dug . | . . . . . . . Terrain Destroyed 15 | . 15 . . . . . Melee . | . . . . . . . Projectile . | . . . . . . . AOE 15 | . 15 . . . . . Terrain Rammed . | . . . . . . . Walls Destroyed . | . . . . . . . Machines Disabled . | . . . . . . . Actions | -11 -10 -10 -9 -8 -7 -7 --------- Run | Yrd Mat Min Mat Mat Fac Gar Total 3225 | 69 1010 152 271 763 419 541 Wait 599 | . 371 39 29 18 100 42 Move 2337 | 60 566 99 204 673 286 449 Hop 9 | . 4 2 2 1 . . Pick Up 31 | 5 10 1 2 8 4 1 Fast Attach 12 | . . 1 . 6 5 . Attach 22 | 4 5 . 3 3 1 6 Detach 2 | . 1 . 1 . . . Swap 20 | . 1 1 2 9 7 . Drop 27 | . 2 2 . 14 9 . Fire 123 | . 50 7 28 31 . 7 Melee 17 | . . . . . 7 10 Ram 5 | . . . . . . 5 Kick . | . . . . . . . Crush . | . . . . . . . Escape Stasis 21 | . . . . . . 21 Rewire . | . . . . . . . Trap . | . . . . . . . Miscellaneous . | . . . . . . . Route ------- -11/Scrapyard -10/Materials (discovered 4 exits: *Mat x3 / *Min) -10/Mines (discovered 2 exits: *Mat x2) -9/Materials (discovered 2 exits: *Mat / *Min) -8/Materials (discovered 2 exits: *Fac x2) -7/Factory (discovered 5 exits: Fac x4 / Gar) -7/Garrison (discovered 2 exits: *Fac x2) History --------- Turn | Location | Event 5 | -11/Scrapyard | Identified exit to Materials 5 | -11/Scrapyard | Discovered exit to Materials (range 16) 60 | -11/Scrapyard | Entered Materials 60 | -10/Materials | Evolved 1 slot: Propulsion x1 163 | -10/Materials | Identified exit to Mines 202 | -10/Materials | Repaired Flight Unit 282 | -10/Materials | Identified exit to Materials 282 | -10/Materials | Discovered exit to Materials (range 13) 321 | -10/Materials | Discovered exit to Materials (range 15) 336 | -10/Materials | Build established: Hacker-Mutant 738 | -10/Materials | Discovered exit to Materials (range 15) 769 | -10/Materials | Entered Mines 775 | -10/Mines | Discovered exit to Materials (range 9) 849 | -10/Mines | Discovered exit to Materials (range 10) 862 | -10/Mines | Entered Materials 862 | -9/Materials | Evolved 2 slots: Propulsion x2 902 | -9/Materials | Identified exit to Mines 902 | -9/Materials | Discovered exit to Mines (range 5) 1003 | -9/Materials | Identified exit to Materials 1003 | -9/Materials | Discovered exit to Materials (range 16) 1015 | -9/Materials | Entered another Materials area 1015 | -8/Materials | Evolved 2 slots: Power x1, Utility x1 1273 | -8/Materials | Identified exit to Factory 1273 | -8/Materials | Discovered exit to Factory (range 14) 1274 | -8/Materials | Build established: Hacker-Sprinter 1325 | -8/Materials | Discovered exit to Factory (range 16) 1328 | -8/Materials | Entered Factory 1328 | -7/Factory | Evolved 2 slots: Utility x2 1363 | -7/Factory | Identified exit to Factory 1448 | -7/Factory | Fabricated H-55 Commando (x2) 1500 | -7/Factory | Identified exit to Garrison 1542 | -7/Factory | Entered Garrison 1542 | -7/Garrison | Accompanied by 2 allies 1606 | -7/Garrison | Triggered checkpoint 1640 | -7/Garrison | Triggered checkpoint 1645 | -7/Garrison | Identified exit to Factory 1645 | -7/Garrison | Discovered exit to Factory (range 10) 1659 | -7/Garrison | Learned Factory security intel 1670 | -7/Garrison | Attempted to access garrison exit controls, blocked by remote lockdown 1680 | -7/Garrison | Triggered checkpoint 1706 | -7/Garrison | Triggered checkpoint 1747 | -7/Garrison | Discovered exit to Factory (range 11) 1758 | -7/Garrison | Attempted to access garrison exit controls, blocked by remote lockdown 1773 | -7/Garrison | Core integrity fell below 50% 1785 | -7/Garrison | Core integrity fell below 20% 1789 | -7/Garrison | Destroyed by Y-54 Guardian with Flak Gun Last Messages --------------- G-47 Trooper destroyed. Acquired 4 matter. Coolant Injector severed. Slammed into Y-54 Guardian. EXIT=FOUND: FACTORY Hpw. Shotgun destroyed. Attempting to access garrison exit controls... Remote lockdown engaged. Core Shielding destroyed. Mic. Nuclear Core destroyed. Sneak attack on C-45 Heavy ARC. C-45 Heavy ARC system offline. Jacked G-47 Trooper... Command string: kys No effect. Critical hit (Burn: +37). Jacked G-47 Trooper... Imp. Deuterium Engine severed. Imp. VTOL Module severed. Deuterium Engine destroyed. Map ----- +----------------------------------------------------+ | ?????????????????????????????????????# | | ?????????????????????????????????????+ | | ?????????????????????????????????????# | | ?????????????????????????????????????## ##""""## | | ??????????????????????????????????????# #??????? | | ??????????#######?????????????????????# #?+?????? | | ??????????#"""""#?????????????????????# #???????? | | ???????????# ############+#####?????# #???????? | | ???????????+ =! + ??+ +???????? | | ???????????## #######=%*####### ##????# #???????? | | ????????????# #?????# [ #?????# T#????# #???????? | | ????????????# #?????##+##?????# ##????# #???????? | | ????????????# #??????#[#?#++### ####### #???????? | | ??????????### ###????#%###% #???????? | | ??????????#! !#????#=!%+! #???????? | | ??????????# #????##### ## ####### ##???????? | | ??????????# #????????# ## #?????# #????????? | | ??????????## ##????????#Y ## #?????# #????????? | | ???????????##+##?????????# ## #?????# #????????? | | ?????????????????????????# Y ## #?????# #????????? | | ?????????????????????????#g ## #?????# #????????? | | ?????????????????????????# ## ????? ?????????? | | ????????????????????????##YYg## ????? ?????????? | | ????????????????????????#Cg C###?????##?????????? | | ???????????? " ###### #??????????????????? | | ?????????????"" g@l< #??????????????????? | | ???????????? " ######= #??????????????????? | | ????????????????????????#C C C#??????????????????? | | ????????????????????????#######??????????????????? | | ?????????????????????????????????????????????????? | | ?????????????????+???????????????????????????????? | | ?????????????????????????????????????????????????? | | ?????????????????????????????????????????????????? | | ?????????????????????????????????????????????????? | | ?????????????????????????????????????????????????? | | ?????????????????????????????????????????????????? | | ?????????????????????????????????????????????????? | | ?????????????????????????????????????????????????? | | ?????????????????????????????????????????????????? | | ?????????????????????????????????????????????????? | | ?????????????????????????????????????????????????? | | ?????????????????????????????????????????????????? | | ?????????????????????????????????????????????????? | | ?????????????????????????????????????????????????? | | ?????????????????????????????????????????????????? | | ?????????????????????????????????????????????????? | | | | | | | | | +----------------------------------------------------+ Best States ------------- Heat Dissipation 56 Coolant Potential 65 Energy Generation 25 Energy Capacity 290 Matter Stores 300 Matter Capacity 300 Sight Range 16 Terrain Scan Density 10 Additional Mass Support 9 Resistance: KI 35 Resistance: TH 35 Resistance: EX 35 Resistance: EM 35 Resistance: I 35 Resistance: S 35 Resistance: P 35 Core Shielding 20 Evasion (%) 65 Targeting Accuracy 10 Offensive Hacking 20 Item Schematics ----------------- None Robot Schematics ------------------ None Fabricated ------------ H-55 Commando | x2 | -7/Factory | Preloaded Repaired ---------- Flight Unit | 10% | -10/Materials Studied --------- None Alien Tech Used ----------------- None Achievements -------------- Can't Catch Me Challenges ------------ None Game ------ Seed BurstHardlightBasin Manual? 0 Play Time 00:49:56 Cumulative 36.0 hours Start 2025.11.28 @ 10:28:50 End 2025.11.28 @ 16:49:22 Sessions 1 Manual Loads 0 Difficulty Explorer Special Mode None Game No. 34 Rogue 16 Adventurer 1 Explorer 17 Win Type - Total 0 Types 0/0/0/0/0/0/0/0/0/0 Lore% 21 Gallery% 26 Achievement% 18 Wizard Run 0 Options --------- Layout 1 ASCII 0 Keyboard 0 Movement Numpad Keybinds 0 Fullscreen 1 Font 24/Smallcaps Map View 50x35 Zoom Use 0% Tactical HUD 0 Map Filters NONE Filters NONE Steam 1 RUN: 439235c1-8499-4302-8572-af56f6c2c550